fUSD/lending_fUSD_20241101
["ID","MTS","AMOUNT","RATE_DAILY","PERIOD"]
[341158627,1730485840767,-250.0,0.00041044,120]
[341158628,1730485840778,-777.6,0.00041076,2]
[341158629,1730485840788,-164.54,0.00041259,2]
[341158630,1730485840797,-160.89,0.0004149,2]
[341158631,1730485840806,-381.45,0.00041522,2]
[341158632,1730485840815,-685.75,0.00041549,2]
[341158633,1730485840824,-165.357,0.0004182,7]
[341158635,1730485840833,-165.396,0.000419,2]
[341158636,1730485840842,-150.0,0.00041913,2]
[341158638,1730485840852,-1045.03,0.00042286,2]
[341158640,1730485840861,-286.33311,0.00042286,14]
[341158642,1730485840871,-151.0,0.00042286,14]
[341158644,1730485840881,-154.985107,0.00042286,14]
[341158646,1730485840890,-3432.0,0.00042343,30]
[341158648,1730485840899,-175.35,0.00042486,120]
[341158650,1730485840908,-525.29,0.00042495,2]
[341158652,1730485840917,-250.0,0.00042524,2]
[341158654,1730485840927,-160.53,0.0004262,2]
[341158656,1730485840936,-23900.0,0.00042639,2]
[341158658,1730485840946,-165.448,0.0004284,3]
[341158660,1730485840955,-200.0,0.00042874,2]
[341158662,1730485840964,-530.39367402,0.0004289,7]
[341158664,1730485840975,-2074.49,0.00042892,2]
[341158666,1730485840984,-202.55,0.00042982,2]
[341158668,1730485840993,-777.6,0.0004334,2]
[341158670,1730485841002,-1157.7018,0.00043453,2]
[341158672,1730485841011,-4495.44661392,0.00043553,2]
[341158674,1730485841021,-399.82770227,0.00043703,2]
[341158676,1730485841030,-165.821,0.0004386,30]
[341158678,1730485841040,-529.91943334,0.00043879,120]
[341158680,1730485841050,-7308.1434,0.0004388,2]
[341158681,1730485841059,-1200.0,0.000439,16]
[341158683,1730485841068,-751.64,0.0004397,10]
[341158685,1730485841077,-224.668,0.00043979,2]
[341158687,1730485841087,-1235.0731,0.00043979,2]
[341158689,1730485841096,-2689.7821,0.0004398,2]
[341158690,1730485841106,-36356.3424,0.0004398,2]
[341158692,1730485841115,-272.6651,0.0004398,2]
[341158694,1730485841124,-260.0093,0.0004398,2]
[341158696,1730485841133,-167.41740258,0.0004398,28]
[341158698,1730485841143,-1510.8651103,0.0004398,15]
[341158700,1730485841151,-151.11,0.0004407,2]
[341158701,1730485841161,-19747.18841934,0.00044079,2]
[341158703,1730485841171,-174.0,0.0004408,2]
[341158705,1730485841181,-6282.87725185,0.0004408,30]
[341158707,1730485841194,-2828.00191361,0.0004408,30]
[341158709,1730485841203,-151.0,0.0004408,14]
[341158711,1730485841212,-151.0,0.0004408,14]
[341158713,1730485841221,-151.0,0.0004408,14]
[341158715,1730485841230,-297.812447,0.0004408,14]
[341158717,1730485841239,-1447.78563939,0.0004408,2]
[341158922,1730485843398,-270.78965127,0.0004408,2]
[341158924,1730485843409,-868.75208991,0.0004408,2]
[341158932,1730485843477,-6264.99120121,0.0004408,2]
[341158934,1730485843488,-41043.0204215,0.0004408,2]
[341158942,1730485843559,-3448.1857894,0.0004408,2]
[341158945,1730485843570,-151.0,0.0004408,14]
[341158947,1730485843579,-174.528903,0.0004408,14]
[341158949,1730485843589,-174.528903,0.0004408,14]
[341158951,1730485843599,-174.528903,0.0004408,14]
[341158953,1730485843609,-174.528903,0.0004408,14]
[341158955,1730485843618,-151.0,0.0004408,14]
[341158957,1730485843629,-235.047836,0.0004408,14]
[341158959,1730485843638,-235.047836,0.0004408,14]
[341158961,1730485843649,-235.047836,0.0004408,14]
[341158962,1730485843658,-235.047836,0.0004408,14]
[341158964,1730485843667,-151.0,0.0004408,14]
[341158966,1730485843676,-48582.03204728,0.0004408,2]
[341158968,1730485843687,-11049.89733465,0.0004408,2]
[341158971,1730485843706,-2734.9,0.0004408,2]
[341159040,1730485846561,-17.46971707,0.0004408,2]
[341159041,1730485846572,-1388.350356,0.0004408,2]
[341159049,1730485968501,8000.00641209,0.0001726,2]
[341159050,1730486275225,156.99,0.00015342,2]
[341159052,1730486743864,340.36673282,0.0002,2]
[341159054,1730486786558,154.03,0.00019178,2]
[341159058,1730486841130,-4284.33979899,0.00026312,2]
[341159060,1730486842916,156.89,0.00015342,2]
[341159061,1730486849149,-2363.03145679,0.00026312,2]
[341159062,1730486853089,-10576.4770413,0.00026245,2]
[341159064,1730486946115,-264.76530792,0.00026345,2]
[341159065,1730486946135,-159.1,0.00026545,2]
[341159066,1730486946156,-1873.228,0.00027465,2]
[341159067,1730486946176,-2000.0,0.00027526,2]
[341159068,1730486946195,-9539.287006,0.00027527,2]
[341159069,1730486946215,-289.454,0.00027665,2]
[341159070,1730486946234,-5114.73176426,0.00027665,2]
[341159071,1730486954135,-4885.25823574,0.00027665,2]
[341159072,1730486954155,-2887.08,0.00027665,2]
[341159073,1730486954176,-12673.40962209,0.00027665,2]
[341159074,1730486970101,-195.01794446,0.00026445,2]
[341159075,1730486970124,-25318.45980404,0.00027665,2]
[341159076,1730486970145,-1126.0,0.00027856,2]
[341159077,1730486970166,-214.03,0.00028589,2]
[341159078,1730486970187,-1383.29050021,0.00028757,2]
[341159079,1730486970208,-69029.33463129,0.00028847,2]
[341159080,1730486972092,-63751.19670461,0.00028847,2]
[341159081,1730486972112,-44479.06,0.00028857,2]
[341159082,1730486972136,-156.99,0.00028858,2]
[341159083,1730486972156,-478.39,0.00028858,2]
[341159084,1730486972176,-999.99,0.00028858,2]
[341159085,1730486972197,-6773.94,0.00028858,2]
[341159086,1730486972216,-500.0,0.00028873,2]
[341159087,1730486972236,-500.86301168,0.00028873,5]
[341159088,1730486972256,-150.0,0.00029507,2]
[341159089,1730486972279,-1028.6785,0.0003,2]
[341159090,1730486972298,-151.0,0.0003,120]
[341159091,1730486972319,-153.112,0.0003,2]
[341159092,1730486972339,-191.966,0.0003,2]
[341159093,1730486972360,-1000.0,0.00030242,2]
[341159094,1730486972383,-723.51,0.00030555,2]
[341159095,1730486972403,-214.03,0.00031448,2]
[341159096,1730486972425,-1383.29050015,0.00031882,15]
[341159097,1730486972445,-745.66845932,0.00032747,2]
[341159098,1730486972465,-723.51,0.00032819,2]
[341159099,1730486972615,-200.0,0.00033357,2]
[341159100,1730486974194,-800.0,0.00033759,2]
[341159101,1730486974216,-250.0,0.00033942,2]
[341159102,1730486974237,-522.51,0.00034069,2]
[341159103,1730486974259,-250.0,0.00034281,2]
[341159104,1730486974285,-214.03,0.00034307,2]
[341159105,1730486974306,-4236.9148018,0.0003443,2]
[341159108,1730487031596,-150.0,0.00034548,10]
[341159109,1730487031606,-1383.29050015,0.00035008,15]
[341159110,1730487031615,-160.54,0.00035049,2]
[341159111,1730487031625,-723.51,0.00035083,2]
[341159112,1730487031765,-191.966,0.00035315,2]
[341159113,1730487031775,-216.33395677,0.0003618,2]
[341159114,1730487031784,-2907.87,0.0003618,2]
[341159115,1730487031794,-1028.6785,0.00036291,2]
[341159116,1730487031803,-289.454,0.00036291,2]
[341159117,1730487031813,-150.99,0.00036291,30]
[341159118,1730487031822,-153.112,0.00036494,2]
[341159119,1730487031831,-227.46,0.00036543,45]
[341159120,1730487031840,-214.03,0.00037166,2]
[341159121,1730487031850,-723.51,0.00037347,2]
[341159122,1730487031859,-160.54,0.00037386,2]
[341159123,1730487031869,-212.94425945,0.00037948,2]
[341159124,1730487031878,-800.0,0.00037979,2]
[341159125,1730487031888,-153.0,0.00038015,2]
[341159126,1730487031897,-153.0,0.00038015,2]
[341159127,1730487031908,-1383.29050015,0.00038133,15]
[341159128,1730487031917,-1184.0,0.000383,2]
[341159129,1730487031927,-2000.0,0.00038356,10]
[341159130,1730487031937,-250.0,0.00039289,120]
[341159131,1730487031947,-3626.01,0.0003935,2]
[341159132,1730487031956,-250.0,0.00039462,2]
[341159133,1730487031965,-723.51,0.00039611,2]
[341159134,1730487031975,-160.54,0.00039723,2]
[341159135,1730487031984,-300.0,0.0004,2]
[341159136,1730487031994,-214.03,0.00040025,2]
[341159137,1730487032003,-153.0,0.00040084,2]
[341159138,1730487032013,-153.0,0.00040084,2]
[341159139,1730487032022,-153.0,0.00040084,2]
[341159140,1730487032031,-153.0,0.00040084,2]
[341159141,1730487032040,-153.0,0.00040084,2]
[341159142,1730487032049,-200.0,0.00040721,2]
[341159143,1730487032059,-1000.0,0.00041096,13]
[341159144,1730487032068,-1000.0,0.00041096,13]
[341159145,1730487032077,-1000.0,0.00041096,13]
[341159146,1730487032086,-521.0,0.00041096,13]
[341159147,1730487032096,-1383.29050015,0.00041259,15]
[341159148,1730487032105,-723.51,0.00041875,2]
[341159149,1730487032115,-160.54,0.00042059,2]
[341159150,1730487032124,-800.0,0.00042199,2]
[341159151,1730487032133,-156.99,0.00042374,2]
[341159152,1730487032142,-214.03,0.00042884,2]
[341159153,1730487032152,-1200.0,0.000438,15]
[341159154,1730487032162,-167.51263919,0.0004388,28]
[341159155,1730487032172,-310.58111645,0.0004388,2]
[341159156,1730487032182,-2400.0,0.000439,16]
[341159157,1730487032191,-286.32,0.0004397,10]
[341159158,1730487032200,-151.11,0.0004397,2]
[341159159,1730487032210,-204.87412294,0.0004397,2]
[341159160,1730487032219,-1569.2611,0.0004398,2]
[341159161,1730487032230,-1000.0,0.0004398,2]
[341159162,1730487032239,-2194.87575447,0.0004398,3]
[341159163,1730487032248,-192970.18075924,0.0004398,2]
[341159164,1730487032257,-2172.4569,0.0004398,2]
[341159165,1730487032267,-2911.0546,0.0004398,2]
[341159166,1730487032276,-32523.33100415,0.0004398,2]
[341159167,1730487032298,-5014.14264186,0.0004398,2]
[341159168,1730487032310,-1045.886,0.0004398,2]
[341159169,1730487032322,-817.055846,0.0004398,2]
[341159170,1730487032338,-495.72833055,0.0004398,2]
[341159171,1730487032351,-972.72507669,0.0004398,2]
[341159172,1730487032364,-2491.7757284,0.0004398,2]
[341159173,1730487032376,-3343.96097844,0.0004398,2]
[341159174,1730487032390,-8606.23695535,0.0004398,2]
[341159175,1730487032401,-332.17124173,0.0004398,2]
[341159176,1730487032417,-28080.28613759,0.0004398,2]
[341159177,1730487037581,-3353.94450525,0.0004398,2]
[341159178,1730487037593,-3035.35101681,0.0004398,2]
[341159179,1730487037614,-1380.94,0.0004398,2]
[341159180,1730487037739,-909.414896,0.0004398,2]
[341159182,1730487039589,-1710.00688966,0.0004398,2]
[341159183,1730487039717,-949.35918265,0.0004398,2]
[341159184,1730487039728,-642.25518029,0.0004398,2]
[341159185,1730487039739,-265.70000922,0.0004398,2]
[341159186,1730487039749,-3823.021712,0.0004398,2]
[341159187,1730487039846,-206.70666736,0.0004398,2]
[341159188,1730487039855,-218381.8946,0.0004398,2]
[341159189,1730487039865,-48263.6287,0.0004398,2]
[341159190,1730487039874,-151.0,0.0004398,14]
[341159191,1730487039883,-151.0,0.0004398,14]
[341159192,1730487039892,-151.0,0.0004398,14]
[341159193,1730487039901,-151.0,0.0004398,7]
[341159194,1730487039911,-151.0,0.0004398,14]
[341159195,1730487039920,-151.0,0.0004398,14]
[341159196,1730487039929,-151.0,0.0004398,14]
[341159197,1730487039938,-155.37192,0.0004398,14]
[341159198,1730487039948,-152.038753,0.0004398,14]
[341159199,1730487039957,-151.0,0.0004398,14]
[341159200,1730487039966,-151.0,0.0004398,14]
[341159201,1730487039975,-157.391166,0.0004398,14]
[341159202,1730487039985,-151.0,0.0004398,3]
[341159203,1730487039994,-151.0,0.0004398,3]
[341159204,1730487040003,-151.0,0.0004398,14]
[341159205,1730487040012,-174.528903,0.0004398,14]
[341159207,1730487040021,-174.528903,0.0004398,14]
[341159209,1730487040030,-174.528903,0.0004398,14]
[341159210,1730487040039,-174.528903,0.0004398,14]
[341159212,1730487040050,-151.0,0.0004398,14]
[341159214,1730487040060,-235.047836,0.0004398,14]
[341159216,1730487040070,-235.047836,0.0004398,14]
[341159218,1730487040080,-235.047836,0.0004398,14]
[341159220,1730487040091,-235.047836,0.0004398,14]
[341159223,1730487040102,-505.93082385,0.00044073,10]
[341159225,1730487040112,-501.65662812,0.00044073,10]
[341159227,1730487040121,-151.0,0.00044079,14]
[341159228,1730487040130,-151.0,0.00044079,14]
[341159230,1730487040139,-151.0,0.00044079,14]
[341159232,1730487040148,-151.0,0.00044079,14]
[341159234,1730487040157,-151.0,0.00044079,14]
[341159236,1730487040167,-151.0,0.00044079,14]
[341159238,1730487040176,-151.0,0.00044079,14]
[341159240,1730487040185,-151.0,0.00044079,14]
[341159242,1730487040194,-1358.02,0.00044079,120]
[341159244,1730487040203,-1609.09295084,0.0004408,7]
[341159246,1730487040212,-200.0,0.0004408,7]
[341159248,1730487040221,-151.0,0.0004408,14]
[341159250,1730487040230,-151.0,0.0004408,14]
[341159252,1730487040239,-151.0,0.0004408,14]
[341159254,1730487040248,-151.0,0.0004408,14]
[341159256,1730487040257,-151.0,0.0004408,14]
[341159257,1730487040266,-151.0,0.0004408,14]
[341159259,1730487040277,-151.0,0.0004408,7]
[341159261,1730487040288,-151.0,0.0004408,14]
[341159262,1730487040298,-151.0,0.0004408,3]
[341159264,1730487040308,-174.528903,0.0004408,14]
[341159266,1730487040317,-174.528903,0.0004408,14]
[341159268,1730487040327,-235.047836,0.0004408,14]
[341159270,1730487040337,-235.047836,0.0004408,14]
[341159272,1730487040346,-151.0,0.0004408,14]
[341159274,1730487040357,-151.0,0.0004408,14]
[341159276,1730487040367,-151.0,0.0004408,14]
[341159278,1730487040377,-44400.09465413,0.0004408,2]
[341159280,1730487040389,-405.85077122,0.0004408,2]
[341159282,1730487040400,-3275.77250001,0.0004408,2]
[341159361,1730487042735,-232.18,0.0004397,10]
[341159362,1730487042744,-50441.15900328,0.0004408,2]
[341159454,1730487045885,-187.76619209,0.00043979,120]
[341159455,1730487045896,-500.0,0.00043979,120]
[341159456,1730487045906,-356.74248263,0.00043979,120]
[341159458,1730487045920,-143.25751737,0.00043979,120]
[341159460,1730487045932,-160.28598262,0.00043979,120]
[341159462,1730487045944,-339.71401738,0.00043979,120]
[341159464,1730487045955,-203.64713494,0.00043979,120]
[341159466,1730487045965,-15730.95959081,0.0004408,2]
[341159641,1730487079178,1796.3943,0.00026212,2]
[341159642,1730487080762,813.66175,0.0003,2]
[341159643,1730487082440,151.35225,0.00027159,2]
[341159644,1730487145095,248.98175969,0.00018123,2]
[341159645,1730487303101,154.01,0.00019178,2]
[341159646,1730487421955,267.0,0.00019725,2]
[341159648,1730487468448,157.53,0.00015342,2]
[341159649,1730487821571,154.01,0.00019178,2]
[341159650,1730487841259,300.0,0.00019725,2]
[341159652,1730487940904,157.33,0.00015342,2]
[341159653,1730487961203,247.0,0.00019725,2]
[341159654,1730488010260,178.21,0.00019178,2]
[341159655,1730488142322,249.0,0.00019725,2]
[341159693,1730488231766,-1002.34808,0.00024055,2]
[341159694,1730488231810,-1388.14980589,0.00024055,2]
[341159695,1730488231820,-440.398762,0.00024055,2]
[341159696,1730488231831,-283.2415025,0.00024055,2]
[341159697,1730488231842,-3111.41220203,0.00024055,2]
[341159698,1730488231857,-761.785,0.00024055,2]
[341159699,1730488232084,-642.10296,0.00024055,2]
[341159705,1730488237714,-273.247,0.00023574,2]
[341159708,1730488237724,-1554.71672524,0.00024055,2]
[341159710,1730488237737,-832.11465234,0.00024055,2]
[341159713,1730488237748,-1694.1979227,0.00024176,2]
[341159715,1730488237757,-2715.08035735,0.00024276,2]
[341159718,1730488237768,-13803.8,0.00024276,2]
[341159726,1730488237845,-1309.28,0.00024276,2]
[341159727,1730488237982,-3666.01851405,0.00024276,2]
[341159728,1730488240004,-1639.90379989,0.00024276,2]
[341159729,1730488240017,-949.35918265,0.00024276,2]
[341159730,1730488240028,-380.2519983,0.00024276,2]
[341159731,1730488240139,-611.35570101,0.00024276,2]
[341159732,1730488240148,-108.63076187,0.00024276,2]
[341159733,1730488240160,-226.80691395,0.00024276,2]
[341159734,1730488240169,-23.82808604,0.00024376,2]
[341159735,1730488240180,-375.90078842,0.00024376,2]
[341159736,1730488240190,-399.72887446,0.00024788,2]
[341159737,1730488240200,-399.72887446,0.00025199,2]
[341159738,1730488240209,-1600.0,0.00025298,2]
[341159739,1730488240219,-557.11,0.00025298,2]
[341159740,1730488240228,-598.41634046,0.00025298,2]
[341159741,1730488240240,-372.54365954,0.00025298,2]
[341159742,1730488240249,-269.13,0.00025298,2]
[341159743,1730488240258,-8.18824014,0.00025298,2]
[341160001,1730488242832,-702.91,0.00025298,2]
[341160004,1730488242843,-49288.90175986,0.00025298,2]
[341160006,1730488242852,-150.99,0.00025299,2]
[341160008,1730488242861,-833.38,0.00025299,2]
[341160010,1730488242875,-999.99,0.00025299,2]
[341160012,1730488242884,-2616.08303282,0.00025299,2]
[341160022,1730488242968,-398.80696718,0.00025299,2]
[341160023,1730488242977,-9999.99,0.00025299,2]
[341160025,1730488242987,-408.0,0.000253,10]
[341160027,1730488242996,-160.00771087,0.00025473,2]
[341160029,1730488243005,-500.0,0.00025473,2]
[341160031,1730488243014,-189.29412611,0.00025475,2]
[341160033,1730488243023,-217.17141663,0.00025475,2]
[341160035,1730488243032,-112753.41195547,0.00025476,2]
[341160037,1730488243041,-159.61,0.00025486,2]
[341160039,1730488243050,-2198.69,0.00025486,2]
[341160041,1730488243059,-789.13,0.00025486,2]
[341160043,1730488243069,-12089.75,0.00025486,2]
[341160045,1730488243078,-831.26,0.00025486,2]
[341160047,1730488243087,-1497.72,0.00025486,2]
[341160049,1730488243096,-169.65,0.0002555,2]
[341160051,1730488243105,-187.36,0.0002555,5]
[341160053,1730488243115,-180.21,0.0002571,2]
[341160055,1730488243124,-160.89,0.00025819,2]
[341160057,1730488243133,-541.39,0.00025827,2]
[341160059,1730488243142,-473.55,0.000259,2]
[341160061,1730488243151,-1332.0,0.00025905,2]
[341160063,1730488243160,-16345.27587628,0.00026,2]
[341160065,1730488243169,-419.31,0.00026003,2]
[341160067,1730488243178,-500.0,0.00026057,2]
[341160068,1730488243187,-481.79837513,0.00026057,2]
[341160071,1730488243197,-202.1415,0.00026355,2]
[341160072,1730488243207,-1557.49891933,0.00026357,2]
[341160074,1730488243216,-154.98825,0.00026394,2]
[341160076,1730488243225,-260.5300956,0.00026473,2]
[341160078,1730488243234,-500.46528927,0.00026473,2]
[341160080,1730488243243,-158.136,0.00026567,2]
[341160082,1730488243253,-453.92,0.00026591,2]
[341160084,1730488243262,-250.0,0.00026591,2]
[341160086,1730488243271,-1000.0,0.00026842,2]
[341160088,1730488243280,-694.09,0.00026986,120]
[341160089,1730488243289,-180.18,0.00027364,2]
[341160091,1730488243299,-150.0,0.00027397,7]
[341160093,1730488243307,-1000.0,0.00027427,5]
[341160095,1730488243316,-250.0,0.0002761,2]
[341160097,1730488243326,-1500.0,0.00029347,2]
[341160099,1730488243335,-760.1564,0.00029699,10]
[341160101,1730488243344,-1557.4989193,0.00029738,15]
[341160103,1730488243354,-693.54,0.00029888,2]
[341160105,1730488243366,-650.0,0.00029932,5]
[341160107,1730488243375,-151.0,0.0003,120]
[341160109,1730488243384,-208.37775,0.0003,2]
[341160111,1730488243394,-160.874,0.0003,2]
[341160113,1730488243403,-340.5505,0.0003,2]
[341160115,1730488243412,-151.0,0.0003,120]
[341160117,1730488243422,-210.4035,0.0003,2]
[341160119,1730488243431,-222.939,0.0003,2]
[341160121,1730488243440,-180.21,0.00030852,2]
[341160123,1730488243449,-8643.23,0.00031128,2]
[341160125,1730488243458,-10148.23,0.0003159,2]
[341160127,1730488243468,-320.0,0.00031668,2]
[341160129,1730488243478,-180.18,0.00031925,2]
[341160131,1730488243487,-693.54,0.00032152,2]
[341160133,1730488243497,-2000.0,0.00032591,2]
[341160135,1730488243506,-1557.4989193,0.00033119,15]
[341160137,1730488243515,-693.54,0.00034416,2]
[341160139,1730488243525,-250.0,0.00034583,2]
[341160141,1730488243535,-6753.14485426,0.00034992,2]
[341160143,1730488243544,-627.0,0.00035,15]
[341160145,1730488243553,-340.5505,0.0003529,2]
[341160147,1730488243562,-208.37775,0.00035316,2]
[341160149,1730488243572,-210.4035,0.00035331,2]
[341160151,1730488243582,-160.874,0.00035426,2]
[341160153,1730488243592,-320.0,0.00035627,2]
[341160155,1730488243601,-813.66175,0.00035892,2]
[341160157,1730488243611,-151.35225,0.00035892,2]
[341160159,1730488243623,-150.0,0.00036,120]
[341160161,1730488243632,-419.31,0.00036404,2]
[341160163,1730488243642,-788.39763449,0.00036432,2]
[341160165,1730488243652,-180.18,0.00036486,2]
[341160167,1730488243663,-1557.4989193,0.00036501,15]
[341160169,1730488243673,-181.968,0.00036541,45]
[341160170,1730488243683,-903.32843612,0.00036561,2]
[341160172,1730488243693,-151.0,0.00036658,120]
[341160174,1730488243703,-693.54,0.0003668,2]
[341160176,1730488243712,-175.35,0.00038039,120]
[341160178,1730488243723,-523.0,0.000382,2]
[341160180,1730488243733,-159.61,0.00038229,30]
[341160183,1730488243746,-1385.0,0.000383,2]
[341160184,1730488243756,-35414.19,0.00038356,2]
[341160186,1730488243765,-500.0,0.00038373,5]
[341160188,1730488243774,-500.59707081,0.000384,5]
[341160190,1730488243784,-615.9508,0.00038548,10]
[341160192,1730488243793,-693.54,0.00038944,2]
[341160194,1730488243803,-779.35,0.00039257,10]
[341160196,1730488243813,-166.6,0.00039267,2]
[341160198,1730488243822,-193.48,0.00039575,10]
[341160200,1730488243832,-320.0,0.00039585,2]
[341160202,1730488243843,-806.2,0.00039722,10]
[341160204,1730488243853,-161.24,0.00039732,10]
[341160207,1730488243865,-608.51370299,0.00039742,5]
[341160209,1730488243875,-680.0,0.00039767,2]
[341160211,1730488243884,-1557.4989193,0.00039882,15]
[341160213,1730488243893,-153.0,0.00040042,2]
[341160215,1730488243903,-153.0,0.00040042,2]
[341160217,1730488243912,-153.0,0.00040042,2]
[341160219,1730488243921,-153.0,0.00040042,2]
[341160220,1730488243931,-153.0,0.00040042,2]
[341160222,1730488243939,-153.0,0.00040042,2]
[341160224,1730488243949,-153.0,0.00040042,2]
[341160226,1730488243958,-500.0,0.00040283,14]
[341160228,1730488243967,-180.18,0.00041047,2]
[341160230,1730488243977,-693.54,0.00041208,2]
[341160232,1730488243986,-14693.25644915,0.00041277,4]
[341160234,1730488243996,-500.0,0.00041512,14]
[341160236,1730488244005,-500.0,0.00041924,14]
[341160238,1730488244014,-10000.0,0.00042204,4]
[341160240,1730488244023,-649.33449184,0.00042469,7]
[341160242,1730488244032,-866.04266018,0.00042469,7]
[341160257,1730488244164,-10000.0,0.00042708,4]
[341160259,1730488244173,-150.0,0.00043,120]
[341160261,1730488244183,-5909.0,0.00043078,2]
[341160263,1730488244191,-3477.939,0.00043078,2]
[341160265,1730488244201,-1557.4989193,0.00043263,15]
[341160267,1730488244209,-151.0,0.00043315,120]
[341160269,1730488244219,-693.54,0.00043471,2]
[341160271,1730488244228,-2000.0,0.000435,3]
[341160273,1730488244237,-320.0,0.00043544,2]
[341160275,1730488244247,-150.0,0.00043562,2]
[341160277,1730488244255,-150.0,0.00043562,2]
[341160279,1730488244264,-168.93,0.00043562,2]
[341160281,1730488244274,-150.0,0.00043562,2]
[341160283,1730488244284,-150.0,0.00043562,2]
[341160285,1730488244293,-150.0,0.00043562,2]
[341160287,1730488244302,-150.0,0.00043562,2]
[341160289,1730488244311,-150.0,0.00043562,2]
[341160291,1730488244321,-150.0,0.00043562,2]
[341160293,1730488244331,-150.0,0.00043562,2]
[341160295,1730488244340,-150.0,0.00043562,2]
[341160297,1730488244351,-150.0,0.00043562,2]
[341160299,1730488244360,-150.0,0.00043562,2]
[341160301,1730488244373,-150.0,0.00043562,2]
[341160304,1730488244383,-150.0,0.00043562,2]
[341160306,1730488244393,-150.0,0.00043562,2]
[341160308,1730488244402,-152.0,0.00043654,3]
[341160310,1730488244411,-1000.0,0.000438,15]
[341160312,1730488244420,-310.46443576,0.000438,2]
[341160314,1730488244430,-1000.0,0.0004388,2]
[341160316,1730488244439,-19967.102163,0.000439,2]
[341160318,1730488244448,-2000.0,0.000439,16]
[341160320,1730488244457,-10000.0,0.00043931,4]
[341160321,1730488244467,-151.11,0.0004397,2]
[341160322,1730488244475,-273.16549726,0.0004397,2]
[341160323,1730488244485,-26192.9644,0.0004398,2]
[341160324,1730488244494,-419684.346,0.0004398,2]
[341160325,1730488244503,-151.98273,0.0004398,14]
[341160326,1730488244512,-151.0,0.0004398,3]
[341160327,1730488244522,-151.0,0.0004398,14]
[341160328,1730488244531,-151.0,0.0004398,14]
[341160329,1730488244540,-151.0,0.0004398,14]
[341160330,1730488244550,-151.0,0.0004398,14]
[341160331,1730488244559,-2000.0,0.00044,3]
[341160333,1730488244569,-5559.68995581,0.00044079,2]
[341160335,1730488244579,-500.0,0.00044079,2]
[341160338,1730488244588,-1301.44,0.00044079,120]
[341160339,1730488244598,-6560.25982082,0.00044079,3]
[341160341,1730488244607,-127969.08870376,0.00044079,3]
[341160343,1730488244618,-200.0,0.0004408,7]
[341160345,1730488244632,-161.232633,0.0004408,14]
[341160347,1730488244642,-151.0,0.0004408,14]
[341160349,1730488244652,-151.0,0.0004408,14]
[341160351,1730488244661,-151.0,0.0004408,14]
[341160353,1730488244671,-151.0,0.0004408,14]
[341160355,1730488244680,-151.0,0.0004408,14]
[341160357,1730488244690,-151.0,0.0004408,14]
[341160359,1730488244699,-151.0,0.0004408,14]
[341160361,1730488244709,-151.0,0.0004408,14]
[341160363,1730488244719,-233.321153,0.0004408,14]
[341160365,1730488244729,-258.774988,0.0004408,14]
[341160367,1730488244739,-2000.0,0.0004408,7]
[341160369,1730488244749,-200.0,0.0004408,7]
[341160371,1730488244758,-151.0,0.0004408,7]
[341160373,1730488244767,-154.308322,0.0004408,3]
[341160375,1730488244776,-151.0,0.0004408,14]
[341160377,1730488244785,-151.0,0.0004408,14]
[341160379,1730488244795,-151.0,0.0004408,14]
[341160381,1730488244804,-151.0,0.0004408,14]